Workbook

Sheet Prehľad večierkov
B3: Prehľad oslavy
B6: UDALOSŤ | D6: PREHĽAD HOSTÍ | H6: ="ZOSTÁVAJÚCE POTVRDENIA ÚČASTI: "&ZostávajúcePotvrdeniaÚčasti -> ZOSTÁVAJÚCE POTVRDENIA ÚČASTI: 2
B7: Oslava babičkiných 75. narodenín | D7: PREHĽAD ÚČASTI | F7: NÁKLADY NA HOSŤA | H7: SUMA ROZPOČTU
D8: Účasť potvrdili | E8: Počet | F8: Potraviny | G8: Iní | H8: Celkom
B9: DÁTUM | D9: Dospelí | E9: =SUMIF(TabuľkaHostí[PRÍDE?],"=Áno",TabuľkaHostí[DOSPELÍ]) -> 26 | F9: =TabuľkaJedla[[#Totals],[CENA ZA DOSPELÉHO]] -> 12.69 € | G9: =ZákladnéNákladyNaHosťa -> 18.70 € | H9: =(SúhrnZaÚčastníkov[[#This Row],[Potraviny]]+SúhrnZaÚčastníkov[[#This Row],[Iní]])*PočetDetí -> 627.71 €
B10: 2011-06-14 | D10: Deti | E10: =SUMIF(TabuľkaHostí[PRÍDE?],"=Áno",TabuľkaHostí[DETI]) -> 20 | F10: =TabuľkaJedla[[#Totals],[CENA ZA DIEŤA]] -> 7.25 € | G10: =ZákladnéNákladyNaHosťa -> 18.70 € | H10: =(SúhrnZaÚčastníkov[[#This Row],[Potraviny]]+SúhrnZaÚčastníkov[[#This Row],[Iní]])*PočetDetí -> 518.97 €
D11: Celkom | E11: =SUBTOTAL(109,SúhrnZaÚčastníkov[Počet]) -> 46 | F11: ="Priem. "&TEXT(SUBTOTAL(101,SúhrnZaÚčastníkov[Potraviny]),"# ##0,00 €") -> Priem. 9,97 € | G11: ="Priem. "&TEXT(SUBTOTAL(101,SúhrnZaÚčastníkov[Iní]),"# ##0,00 €") -> Priem. 18,70 € | H11: =SUBTOTAL(109,SúhrnZaÚčastníkov[Celkom]) -> 1,146.69 €
B12: ČAS
B13: od 14:00 do 16:00
B15: MIESTO | D15: PREHĽAD ROZPOČTU
B16: Dom tety Jany | D16: POLOŽKA | E16: MNOŽSTVO | F16: SUMA ROZPOČTU | G16: CELKOVÉ NÁKLADY | H16: ROZDIEL
D17: Jedlo a nápoje | E17: =COUNTA(TabuľkaJedla[JEDLO ALEBO NÁPOJ]) -> 18 | F17: 500.00 € | G17: =TabuľkaJedla[[#Totals],[CELKOVÉ NÁKLADY]] -> 475.00 € | H17: =PrehľadRozpočtu[[#This Row],[SUMA ROZPOČTU]]-PrehľadRozpočtu[[#This Row],[CELKOVÉ NÁKLADY]] -> 25.00 €
D18: =Tabuľka1Hlavička -> Zariadenie & potreby | E18: =COUNTA(Tabuľka1Rozpočet[Zariadenie & potreby]) -> 7 | F18: 400.00 € | G18: =Tabuľka1Rozpočet[[#Totals],[Náklady]] -> 400.00 € | H18: =PrehľadRozpočtu[[#This Row],[SUMA ROZPOČTU]]-PrehľadRozpočtu[[#This Row],[CELKOVÉ NÁKLADY]] -> 0.00 €
D19: =Tabuľka2Hlavička -> Výzdoba | E19: =COUNTA(Tabuľka2Rozpočet[Výzdoba]) -> 4 | F19: 150.00 € | G19: =Tabuľka2Rozpočet[[#Totals],[Náklady]] -> 175.00 € | H19: =PrehľadRozpočtu[[#This Row],[SUMA ROZPOČTU]]-PrehľadRozpočtu[[#This Row],[CELKOVÉ NÁKLADY]] -> -25.00 €
D20: =Tabuľka3Hlavička -> Iní | E20: =COUNTA(Tabuľka3Rozpočet[Iní]) -> 4 | F20: 300.00 € | G20: =Tabuľka3Rozpočet[[#Totals],[Náklady]] -> 285.00 € | H20: =PrehľadRozpočtu[[#This Row],[SUMA ROZPOČTU]]-PrehľadRozpočtu[[#This Row],[CELKOVÉ NÁKLADY]] -> 15.00 €
D21: Celkom | E21: =SUBTOTAL(109,PrehľadRozpočtu[MNOŽSTVO]) -> 33 | F21: =SUBTOTAL(109,PrehľadRozpočtu[SUMA ROZPOČTU]) -> 1,350.00 € | G21: =SUBTOTAL(109,PrehľadRozpočtu[CELKOVÉ NÁKLADY]) -> 1,335.00 € | H21: =PrehľadRozpočtu[[#Totals],[SUMA ROZPOČTU]]-PrehľadRozpočtu[[#Totals],[CELKOVÉ NÁKLADY]] -> 15.00 €

Sheet Zoznam hostí
B3: Zoznam hostí
B7: MENO | C7: ADRESA | D7: MESTO | E7: ŠTÁT | F7: PSČ | G7: TELEFÓN | H7: E-MAIL | I7: PRÍDE? | J7: DETI | K7: DOSPELÍ | L7: CELKOM
B8: Rodina 1 | C8: Adresa 1 | D8: Mesto 1 | E8: Štát 1 | F8: PSČ 1 | G8: Telefón 1 | H8: E-mail 1 | I8: Nie | J8: 2 | K8: 2 | L8: =SUM(TabuľkaHostí[[#This Row],[DETI]:[DOSPELÍ]]) -> 4
B9: Rodina 2 | C9: Adresa 2 | D9: Mesto 2 | E9: Štát 2 | F9: PSČ 2 | G9: Telefón 2 | H9: E-mail 2 | I9: Áno | J9: 1 | K9: 1 | L9: =SUM(TabuľkaHostí[[#This Row],[DETI]:[DOSPELÍ]]) -> 2
B10: Rodina 3 | C10: Adresa 3 | D10: Mesto 3 | E10: Štát 3 | F10: PSČ 3 | G10: Telefón 3 | H10: E-mail 3 | I10: Áno | J10: 3 | K10: 3 | L10: =SUM(TabuľkaHostí[[#This Row],[DETI]:[DOSPELÍ]]) -> 6
B11: Rodina 4 | C11: Adresa 4 | D11: Mesto 4 | E11: Štát 4 | F11: PSČ 4 | G11: Telefón 4 | H11: E-mail 4 | K11: 2 | L11: =SUM(TabuľkaHostí[[#This Row],[DETI]:[DOSPELÍ]]) -> 2
B12: Rodina 5 | C12: Adresa 5 | D12: Mesto 5 | E12: Štát 5 | F12: PSČ 5 | G12: Telefón 5 | H12: E-mail 5 | I12: Áno | J12: 4 | K12: 3 | L12: =SUM(TabuľkaHostí[[#This Row],[DETI]:[DOSPELÍ]]) -> 7
B13: Rodina 6 | C13: Adresa 6 | D13: Mesto 6 | E13: Štát 6 | F13: PSČ 6 | G13: Telefón 6 | H13: E-mail 6 | I13: Áno | J13: 2 | K13: 2 | L13: =SUM(TabuľkaHostí[[#This Row],[DETI]:[DOSPELÍ]]) -> 4
B14: Rodina 7 | C14: Adresa 7 | D14: Mesto 7 | E14: Štát 7 | F14: PSČ 7 | G14: Telefón 7 | H14: E-mail 7 | I14: Áno | J14: 1 | K14: 4 | L14: =SUM(TabuľkaHostí[[#This Row],[DETI]:[DOSPELÍ]]) -> 5
B15: Rodina 8 | C15: Adresa 8 | D15: Mesto 8 | E15: Štát 8 | F15: PSČ 8 | G15: Telefón 8 | H15: E-mail 8 | I15: Nie | J15: 5 | K15: 3 | L15: =SUM(TabuľkaHostí[[#This Row],[DETI]:[DOSPELÍ]]) -> 8
B16: Rodina 9 | C16: Adresa 9 | D16: Mesto 9 | E16: Štát 9 | F16: PSČ 9 | G16: Telefón 9 | H16: E-mail 9 | I16: Áno | J16: 3 | K16: 2 | L16: =SUM(TabuľkaHostí[[#This Row],[DETI]:[DOSPELÍ]]) -> 5
B17: Rodina 10 | C17: Adresa 10 | D17: Mesto 10 | E17: Štát 10 | F17: PSČ 10 | G17: Telefón 10 | H17: E-mail 10 | I17: Áno | K17: 4 | L17: =SUM(TabuľkaHostí[[#This Row],[DETI]:[DOSPELÍ]]) -> 4
B18: Rodina 11 | C18: Adresa 11 | D18: Mesto 11 | E18: Štát 11 | F18: PSČ 11 | G18: Telefón 11 | H18: E-mail 11 | I18: Áno | J18: 3 | K18: 5 | L18: =SUM(TabuľkaHostí[[#This Row],[DETI]:[DOSPELÍ]]) -> 8
B19: Rodina 12 | C19: Adresa 12 | D19: Mesto 12 | E19: Štát 12 | F19: PSČ 12 | G19: Telefón 12 | H19: E-mail 12 | I19: Nie | J19: 2 | K19: 3 | L19: =SUM(TabuľkaHostí[[#This Row],[DETI]:[DOSPELÍ]]) -> 5
B20: Rodina 13 | C20: Adresa 13 | D20: Mesto 13 | E20: Štát 13 | F20: PSČ 13 | G20: Telefón 13 | H20: E-mail 13 | I20: Áno | J20: 3 | K20: 2 | L20: =SUM(TabuľkaHostí[[#This Row],[DETI]:[DOSPELÍ]]) -> 5
B21: Rodina 14 | C21: Adresa 14 | D21: Mesto 14 | E21: Štát 14 | F21: PSČ 14 | G21: Telefón 14 | H21: E-mail 14 | I21: Nie | K21: 1 | L21: =SUM(TabuľkaHostí[[#This Row],[DETI]:[DOSPELÍ]]) -> 1
B22: Rodina 15 | C22: Adresa 15 | D22: Mesto 15 | E22: Štát 15 | F22: PSČ 15 | G22: Telefón 15 | H22: E-mail 15 | K22: 2 | L22: =SUM(TabuľkaHostí[[#This Row],[DETI]:[DOSPELÍ]]) -> 2

Sheet Jedlo a nápoje
B3: Jedlo a nápoje
B5: Zadajte cenu a odhadované porcie na automatické vypočítanie celkového počtu porcií a ceny za porciu podľa celkovej účasti
B6: JEDLO ALEBO NÁPOJ | C6: CELKOVÉ NÁKLADY | D6: PORCIA NA DIEŤA | E6: PORCIA NA DOSPELÉHO | F6: SPOLU PORCIÍ | G6: CENA ZA PORCIU | H6: CENA ZA DIEŤA | I6: CENA ZA DOSPELÉHO | J6: POZNÁMKY
B7: Sóda | C7: 15.00 € | D7: 0.5 | E7: 2 | F7: =(TabuľkaJedla[[#This Row],[PORCIA NA DIEŤA]]*PočetDetí)+(TabuľkaJedla[[#This Row],[PORCIA NA DOSPELÉHO]]*PočetDospelých) -> 62 | G7: =IFERROR(TabuľkaJedla[[#This Row],[CELKOVÉ NÁKLADY]]/TabuľkaJedla[[#This Row],[SPOLU PORCIÍ]],"") -> 0.24 € | H7: =IFERROR(TabuľkaJedla[[#This Row],[CENA ZA PORCIU]]*TabuľkaJedla[[#This Row],[PORCIA NA DIEŤA]],"") -> 0.12 € | I7: =IFERROR(TabuľkaJedla[[#This Row],[CENA ZA PORCIU]]*TabuľkaJedla[[#This Row],[PORCIA NA DOSPELÉHO]],"") -> 0.48 € | J7: 2-litrové fľaše
B8: Krabicové džúsy | C8: 15.00 € | D8: 2 | E8: 0 | F8: =(TabuľkaJedla[[#This Row],[PORCIA NA DIEŤA]]*PočetDetí)+(TabuľkaJedla[[#This Row],[PORCIA NA DOSPELÉHO]]*PočetDospelých) -> 40 | G8: =IFERROR(TabuľkaJedla[[#This Row],[CELKOVÉ NÁKLADY]]/TabuľkaJedla[[#This Row],[SPOLU PORCIÍ]],"") -> 0.38 € | H8: =IFERROR(TabuľkaJedla[[#This Row],[CENA ZA PORCIU]]*TabuľkaJedla[[#This Row],[PORCIA NA DIEŤA]],"") -> 0.75 € | I8: =IFERROR(TabuľkaJedla[[#This Row],[CENA ZA PORCIU]]*TabuľkaJedla[[#This Row],[PORCIA NA DOSPELÉHO]],"") -> 0.00 € | J8: Jablká a biele hrozno
B9: Víno | C9: 50.00 € | D9: 0 | E9: 2 | F9: =(TabuľkaJedla[[#This Row],[PORCIA NA DIEŤA]]*PočetDetí)+(TabuľkaJedla[[#This Row],[PORCIA NA DOSPELÉHO]]*PočetDospelých) -> 52 | G9: =IFERROR(TabuľkaJedla[[#This Row],[CELKOVÉ NÁKLADY]]/TabuľkaJedla[[#This Row],[SPOLU PORCIÍ]],"") -> 0.96 € | H9: =IFERROR(TabuľkaJedla[[#This Row],[CENA ZA PORCIU]]*TabuľkaJedla[[#This Row],[PORCIA NA DIEŤA]],"") -> 0.00 € | I9: =IFERROR(TabuľkaJedla[[#This Row],[CENA ZA PORCIU]]*TabuľkaJedla[[#This Row],[PORCIA NA DOSPELÉHO]],"") -> 1.92 €
B10: Torta | C10: 75.00 € | D10: 1 | E10: 1 | F10: =(TabuľkaJedla[[#This Row],[PORCIA NA DIEŤA]]*PočetDetí)+(TabuľkaJedla[[#This Row],[PORCIA NA DOSPELÉHO]]*PočetDospelých) -> 46 | G10: =IFERROR(TabuľkaJedla[[#This Row],[CELKOVÉ NÁKLADY]]/TabuľkaJedla[[#This Row],[SPOLU PORCIÍ]],"") -> 1.63 € | H10: =IFERROR(TabuľkaJedla[[#This Row],[CENA ZA PORCIU]]*TabuľkaJedla[[#This Row],[PORCIA NA DIEŤA]],"") -> 1.63 € | I10: =IFERROR(TabuľkaJedla[[#This Row],[CENA ZA PORCIU]]*TabuľkaJedla[[#This Row],[PORCIA NA DOSPELÉHO]],"") -> 1.63 € | J10: Objednať v cukrárni
B11: Zmrzlina | C11: 20.00 € | D11: 1 | E11: 1.5 | F11: =(TabuľkaJedla[[#This Row],[PORCIA NA DIEŤA]]*PočetDetí)+(TabuľkaJedla[[#This Row],[PORCIA NA DOSPELÉHO]]*PočetDospelých) -> 59 | G11: =IFERROR(TabuľkaJedla[[#This Row],[CELKOVÉ NÁKLADY]]/TabuľkaJedla[[#This Row],[SPOLU PORCIÍ]],"") -> 0.34 € | H11: =IFERROR(TabuľkaJedla[[#This Row],[CENA ZA PORCIU]]*TabuľkaJedla[[#This Row],[PORCIA NA DIEŤA]],"") -> 0.34 € | I11: =IFERROR(TabuľkaJedla[[#This Row],[CENA ZA PORCIU]]*TabuľkaJedla[[#This Row],[PORCIA NA DOSPELÉHO]],"") -> 0.51 €
B12: Pudingy | C12: 15.00 € | D12: 1 | E12: 0 | F12: =(TabuľkaJedla[[#This Row],[PORCIA NA DIEŤA]]*PočetDetí)+(TabuľkaJedla[[#This Row],[PORCIA NA DOSPELÉHO]]*PočetDospelých) -> 20 | G12: =IFERROR(TabuľkaJedla[[#This Row],[CELKOVÉ NÁKLADY]]/TabuľkaJedla[[#This Row],[SPOLU PORCIÍ]],"") -> 0.75 € | H12: =IFERROR(TabuľkaJedla[[#This Row],[CENA ZA PORCIU]]*TabuľkaJedla[[#This Row],[PORCIA NA DIEŤA]],"") -> 0.75 € | I12: =IFERROR(TabuľkaJedla[[#This Row],[CENA ZA PORCIU]]*TabuľkaJedla[[#This Row],[PORCIA NA DOSPELÉHO]],"") -> 0.00 € | J12: Kúpiť balené: vanilkové a čokoládové
B13: Plnené hríby | C13: 32.00 € | D13: 1 | E13: 2 | F13: =(TabuľkaJedla[[#This Row],[PORCIA NA DIEŤA]]*PočetDetí)+(TabuľkaJedla[[#This Row],[PORCIA NA DOSPELÉHO]]*PočetDospelých) -> 72 | G13: =IFERROR(TabuľkaJedla[[#This Row],[CELKOVÉ NÁKLADY]]/TabuľkaJedla[[#This Row],[SPOLU PORCIÍ]],"") -> 0.44 € | H13: =IFERROR(TabuľkaJedla[[#This Row],[CENA ZA PORCIU]]*TabuľkaJedla[[#This Row],[PORCIA NA DIEŤA]],"") -> 0.44 € | I13: =IFERROR(TabuľkaJedla[[#This Row],[CENA ZA PORCIU]]*TabuľkaJedla[[#This Row],[PORCIA NA DOSPELÉHO]],"") -> 0.89 € | J13: Šampiňóny plnené smotanovým syrom a údeninou
B14: Bruschetta | C14: 22.00 € | D14: 0 | E14: 3 | F14: =(TabuľkaJedla[[#This Row],[PORCIA NA DIEŤA]]*PočetDetí)+(TabuľkaJedla[[#This Row],[PORCIA NA DOSPELÉHO]]*PočetDospelých) -> 78 | G14: =IFERROR(TabuľkaJedla[[#This Row],[CELKOVÉ NÁKLADY]]/TabuľkaJedla[[#This Row],[SPOLU PORCIÍ]],"") -> 0.28 € | H14: =IFERROR(TabuľkaJedla[[#This Row],[CENA ZA PORCIU]]*TabuľkaJedla[[#This Row],[PORCIA NA DIEŤA]],"") -> 0.00 € | I14: =IFERROR(TabuľkaJedla[[#This Row],[CENA ZA PORCIU]]*TabuľkaJedla[[#This Row],[PORCIA NA DOSPELÉHO]],"") -> 0.85 € | J14: Paradajky a bazalka
B15: Údený losos | C15: 50.00 € | D15: 1 | E15: 2 | F15: =(TabuľkaJedla[[#This Row],[PORCIA NA DIEŤA]]*PočetDetí)+(TabuľkaJedla[[#This Row],[PORCIA NA DOSPELÉHO]]*PočetDospelých) -> 72 | G15: =IFERROR(TabuľkaJedla[[#This Row],[CELKOVÉ NÁKLADY]]/TabuľkaJedla[[#This Row],[SPOLU PORCIÍ]],"") -> 0.69 € | H15: =IFERROR(TabuľkaJedla[[#This Row],[CENA ZA PORCIU]]*TabuľkaJedla[[#This Row],[PORCIA NA DIEŤA]],"") -> 0.69 € | I15: =IFERROR(TabuľkaJedla[[#This Row],[CENA ZA PORCIU]]*TabuľkaJedla[[#This Row],[PORCIA NA DOSPELÉHO]],"") -> 1.39 €
B16: Malé žemle | C16: 20.00 € | D16: 1 | E16: 2 | F16: =(TabuľkaJedla[[#This Row],[PORCIA NA DIEŤA]]*PočetDetí)+(TabuľkaJedla[[#This Row],[PORCIA NA DOSPELÉHO]]*PočetDospelých) -> 72 | G16: =IFERROR(TabuľkaJedla[[#This Row],[CELKOVÉ NÁKLADY]]/TabuľkaJedla[[#This Row],[SPOLU PORCIÍ]],"") -> 0.28 € | H16: =IFERROR(TabuľkaJedla[[#This Row],[CENA ZA PORCIU]]*TabuľkaJedla[[#This Row],[PORCIA NA DIEŤA]],"") -> 0.28 € | I16: =IFERROR(TabuľkaJedla[[#This Row],[CENA ZA PORCIU]]*TabuľkaJedla[[#This Row],[PORCIA NA DOSPELÉHO]],"") -> 0.56 € | J16: 4 tašky – rôzne
B17: Smotanový syr | C17: 10.00 € | D17: 1 | E17: 2 | F17: =(TabuľkaJedla[[#This Row],[PORCIA NA DIEŤA]]*PočetDetí)+(TabuľkaJedla[[#This Row],[PORCIA NA DOSPELÉHO]]*PočetDospelých) -> 72 | G17: =IFERROR(TabuľkaJedla[[#This Row],[CELKOVÉ NÁKLADY]]/TabuľkaJedla[[#This Row],[SPOLU PORCIÍ]],"") -> 0.14 € | H17: =IFERROR(TabuľkaJedla[[#This Row],[CENA ZA PORCIU]]*TabuľkaJedla[[#This Row],[PORCIA NA DIEŤA]],"") -> 0.14 € | I17: =IFERROR(TabuľkaJedla[[#This Row],[CENA ZA PORCIU]]*TabuľkaJedla[[#This Row],[PORCIA NA DOSPELÉHO]],"") -> 0.28 € | J17: 2 veľké tégliky
B18: Kapary | C18: 12.00 € | D18: 1 | E18: 2 | F18: =(TabuľkaJedla[[#This Row],[PORCIA NA DIEŤA]]*PočetDetí)+(TabuľkaJedla[[#This Row],[PORCIA NA DOSPELÉHO]]*PočetDospelých) -> 72 | G18: =IFERROR(TabuľkaJedla[[#This Row],[CELKOVÉ NÁKLADY]]/TabuľkaJedla[[#This Row],[SPOLU PORCIÍ]],"") -> 0.17 € | H18: =IFERROR(TabuľkaJedla[[#This Row],[CENA ZA PORCIU]]*TabuľkaJedla[[#This Row],[PORCIA NA DIEŤA]],"") -> 0.17 € | I18: =IFERROR(TabuľkaJedla[[#This Row],[CENA ZA PORCIU]]*TabuľkaJedla[[#This Row],[PORCIA NA DOSPELÉHO]],"") -> 0.33 € | J18: 3 poháre
B19: Kuracie krídelká | C19: 45.00 € | D19: 2 | E19: 4 | F19: =(TabuľkaJedla[[#This Row],[PORCIA NA DIEŤA]]*PočetDetí)+(TabuľkaJedla[[#This Row],[PORCIA NA DOSPELÉHO]]*PočetDospelých) -> 144 | G19: =IFERROR(TabuľkaJedla[[#This Row],[CELKOVÉ NÁKLADY]]/TabuľkaJedla[[#This Row],[SPOLU PORCIÍ]],"") -> 0.31 € | H19: =IFERROR(TabuľkaJedla[[#This Row],[CENA ZA PORCIU]]*TabuľkaJedla[[#This Row],[PORCIA NA DIEŤA]],"") -> 0.63 € | I19: =IFERROR(TabuľkaJedla[[#This Row],[CENA ZA PORCIU]]*TabuľkaJedla[[#This Row],[PORCIA NA DOSPELÉHO]],"") -> 1.25 € | J19: Kúpiť v mäsiarstve na rohu
B20: Hummus | C20: 10.00 € | D20: 4 | E20: 6 | F20: =(TabuľkaJedla[[#This Row],[PORCIA NA DIEŤA]]*PočetDetí)+(TabuľkaJedla[[#This Row],[PORCIA NA DOSPELÉHO]]*PočetDospelých) -> 236 | G20: =IFERROR(TabuľkaJedla[[#This Row],[CELKOVÉ NÁKLADY]]/TabuľkaJedla[[#This Row],[SPOLU PORCIÍ]],"") -> 0.04 € | H20: =IFERROR(TabuľkaJedla[[#This Row],[CENA ZA PORCIU]]*TabuľkaJedla[[#This Row],[PORCIA NA DIEŤA]],"") -> 0.17 € | I20: =IFERROR(TabuľkaJedla[[#This Row],[CENA ZA PORCIU]]*TabuľkaJedla[[#This Row],[PORCIA NA DOSPELÉHO]],"") -> 0.25 € | J20: Urobiť deň predtým
B21: Parmezánové pita lupienky | C21: 14.00 € | D21: 4 | E21: 6 | F21: =(TabuľkaJedla[[#This Row],[PORCIA NA DIEŤA]]*PočetDetí)+(TabuľkaJedla[[#This Row],[PORCIA NA DOSPELÉHO]]*PočetDospelých) -> 236 | G21: =IFERROR(TabuľkaJedla[[#This Row],[CELKOVÉ NÁKLADY]]/TabuľkaJedla[[#This Row],[SPOLU PORCIÍ]],"") -> 0.06 € | H21: =IFERROR(TabuľkaJedla[[#This Row],[CENA ZA PORCIU]]*TabuľkaJedla[[#This Row],[PORCIA NA DIEŤA]],"") -> 0.24 € | I21: =IFERROR(TabuľkaJedla[[#This Row],[CENA ZA PORCIU]]*TabuľkaJedla[[#This Row],[PORCIA NA DOSPELÉHO]],"") -> 0.36 € | J21: Urobiť deň predtým
B22: Zeleninová príloha | C22: 30.00 € | D22: 4 | E22: 10 | F22: =(TabuľkaJedla[[#This Row],[PORCIA NA DIEŤA]]*PočetDetí)+(TabuľkaJedla[[#This Row],[PORCIA NA DOSPELÉHO]]*PočetDospelých) -> 340 | G22: =IFERROR(TabuľkaJedla[[#This Row],[CELKOVÉ NÁKLADY]]/TabuľkaJedla[[#This Row],[SPOLU PORCIÍ]],"") -> 0.09 € | H22: =IFERROR(TabuľkaJedla[[#This Row],[CENA ZA PORCIU]]*TabuľkaJedla[[#This Row],[PORCIA NA DIEŤA]],"") -> 0.35 € | I22: =IFERROR(TabuľkaJedla[[#This Row],[CENA ZA PORCIU]]*TabuľkaJedla[[#This Row],[PORCIA NA DOSPELÉHO]],"") -> 0.88 € | J22: Mrkva, zeler, brokolica, karfiol, červená a zelená paprika
B23: Syrová nátierka | C23: 15.00 € | D23: 5 | E23: 10 | F23: =(TabuľkaJedla[[#This Row],[PORCIA NA DIEŤA]]*PočetDetí)+(TabuľkaJedla[[#This Row],[PORCIA NA DOSPELÉHO]]*PočetDospelých) -> 360 | G23: =IFERROR(TabuľkaJedla[[#This Row],[CELKOVÉ NÁKLADY]]/TabuľkaJedla[[#This Row],[SPOLU PORCIÍ]],"") -> 0.04 € | H23: =IFERROR(TabuľkaJedla[[#This Row],[CENA ZA PORCIU]]*TabuľkaJedla[[#This Row],[PORCIA NA DIEŤA]],"") -> 0.21 € | I23: =IFERROR(TabuľkaJedla[[#This Row],[CENA ZA PORCIU]]*TabuľkaJedla[[#This Row],[PORCIA NA DOSPELÉHO]],"") -> 0.42 € | J23: Rôzne: smotanový syr, zrejúci syr, orechy
B24: Keksy | C24: 25.00 € | D24: 5 | E24: 10 | F24: =(TabuľkaJedla[[#This Row],[PORCIA NA DIEŤA]]*PočetDetí)+(TabuľkaJedla[[#This Row],[PORCIA NA DOSPELÉHO]]*PočetDospelých) -> 360 | G24: =IFERROR(TabuľkaJedla[[#This Row],[CELKOVÉ NÁKLADY]]/TabuľkaJedla[[#This Row],[SPOLU PORCIÍ]],"") -> 0.07 € | H24: =IFERROR(TabuľkaJedla[[#This Row],[CENA ZA PORCIU]]*TabuľkaJedla[[#This Row],[PORCIA NA DIEŤA]],"") -> 0.35 € | I24: =IFERROR(TabuľkaJedla[[#This Row],[CENA ZA PORCIU]]*TabuľkaJedla[[#This Row],[PORCIA NA DOSPELÉHO]],"") -> 0.69 € | J24: Rôzne
B25: Celkom | C25: =SUBTOTAL(109,TabuľkaJedla[CELKOVÉ NÁKLADY]) -> 475.00 € | D25: =SUBTOTAL(109,TabuľkaJedla[PORCIA NA DIEŤA]) -> 34.5 | E25: =SUBTOTAL(109,TabuľkaJedla[PORCIA NA DOSPELÉHO]) -> 65.5 | F25: =SUBTOTAL(109,TabuľkaJedla[SPOLU PORCIÍ]) -> 2393 | G25: =SUBTOTAL(109,TabuľkaJedla[CENA ZA PORCIU]) -> 6.92 € | H25: =SUBTOTAL(109,TabuľkaJedla[CENA ZA DIEŤA]) -> 7.25 € | I25: =SUBTOTAL(109,TabuľkaJedla[CENA ZA DOSPELÉHO]) -> 12.69 €

Sheet Ďalšie základné veci
B3: Ďalšie základné veci
B6: Zariadenie & potreby | C6: Náklady | D6: Kúpené | E6: Poznámky
B7: Prenájom miestnosti/sály | C7: 250.00 € | D7: Áno
B8: Obrusy | C8: 30.00 € | D8: Áno | E8: Nájomné
B9: Stoly a stoličky | C9: 0.00 € | E9: Zahrnuté v prenájme sály
B10: Obrúsky k nápojom | C10: 25.00 €
B11: Obrúsky k jedlu | C11: 20.00 € | E11: Nájomné
B12: Obsluha | C12: 50.00 € | E12: Nájomné
B13: Riad | C13: 25.00 € | E13: Nájomné
B14: Celkom | C14: =SUBTOTAL(109,Tabuľka1Rozpočet[Náklady]) -> 400.00 €
B17: Výzdoba | C17: Náklady | D17: Kúpené | E17: Poznámky
B18: Balóny | C18: 25.00 €
B19: Nádoba s héliom | C19: 50.00 € | E19: Nájomné
B20: Ozdoby na stôl | C20: 100.00 € | D20: Áno | E20: Spolu 10
B21: Sklenené vázy | C21: 0.00 € | E21: Požičia Lenka
B22: Celkom | C22: =SUBTOTAL(109,Tabuľka2Rozpočet[Náklady]) -> 175.00 €
B25: Iní | C25: Náklady | D25: Kúpené | E25: Poznámky
B26: Pozvánky | C26: 50.00 € | D26: Áno
B27: Poštovné | C27: 60.00 € | D27: Áno
B28: Fotograf | C28: 125.00 € | E28: 2 hodiny (od 14:00 do 16:00)
B29: Darčekové predmety | C29: 50.00 €
B30: Celkom | C30: =SUBTOTAL(109,Tabuľka3Rozpočet[Náklady]) -> 285.00 €

Sheet Mriežka zasadacieho poriadku
A1: Zasadací poriadok
AH35: *1 štvorček = približne 0,1 m2
A36: Poznámky | T36: =" Celkový počet hostí s potvrdenou účasťou: "&PotvrdeníHostia -> Celkový počet hostí s potvrdenou účasťou: 46
T37: Môžete použiť ktorékoľvek z nasledujúcich usporiadaní stolov:
U38: =ROUNDUP(PotvrdeníHostia/6,0)&"okrúhle 1,4-metrové stoly (6 sedadiel)" -> 8okrúhle 1,4-metrové stoly (6 sedadiel)
U39: =ROUNDUP(PotvrdeníHostia/8,0) &" okrúhle 1,5-metrové stoly (8 sedadiel)" -> 6 okrúhle 1,5-metrové stoly (8 sedadiel)
U40: =ROUNDUP(PotvrdeníHostia/10,0)&"okrúhle 1,8-metrové stoly (10 sedadiel)" -> 5okrúhle 1,8-metrové stoly (10 sedadiel)
U41: =ROUNDUP(PotvrdeníHostia/6,0)& " obdĺžnikové stoly 0,75 x 1,8 m (6 sedadiel)" -> 8 obdĺžnikové stoly 0,75 x 1,8 m (6 sedadiel)
U42: =ROUNDUP(PotvrdeníHostia/8,0)&" obdĺžnikové stoly 0,75 x 2,4 m (8 sedadiel)" -> 6 obdĺžnikové stoly 0,75 x 2,4 m (8 sedadiel)
T43: (Ideálne rozstupy medzi stolmi: 107 cm)
